bitfinex/quotes_ETHUSD_20251212
["timestamp","ask_amount","ask_price","bid_price","bid_amount"]
[1765554046620,2.698,3106.8,3104.5,1.068]
[1765554046820,0.3001228,3106.9,3104.6,0.472]
[1765554047019,6.48707756,3107.0,3104.6,0.472]
[1765554047329,0.05,3107.0,3104.8,8.46048301]
[1765554047622,0.05,3107.4,3104.9,1.05247529]
[1765554047842,0.05,3107.4,3105.4,8.46048301]
[1765554048035,0.05,3107.4,3105.6,0.58047529]
[1765554048322,0.05,3106.9,3105.5,0.597]
[1765554048516,8.719155,3107.0,3105.6,0.472]
[1765554048718,0.4905,3107.3,3105.7,0.597]
[1765554048884,1.18818176,3107.3,3105.7,0.597]
[1765554049104,1.18818176,3107.3,3105.8,0.472]
[1765554049105,0.69768176,3107.3,3105.8,0.472]
[1765554049457,3.2171044,3108.4,3105.9,0.58047529]
[1765554049604,3.2171044,3108.4,3106.0,0.597]
[1765554049605,2.284248,3107.8,3106.0,0.597]
[1765554049799,2.718911,3107.7,3106.0,0.597]
[1765554050014,0.05,3107.5,3106.1,0.472]
[1765554050252,0.32678138,3107.5,3106.1,0.597]
[1765554050452,3.272017,3107.4,3106.1,0.597]
[1765554050604,4.71941429,3107.1,3107.0,0.003]
[1765554050804,0.37678138,3107.5,3107.0,0.003]
[1765554051013,3.21781381,3107.7,3107.0,0.003]
[1765554051218,6.43562762,3107.7,3107.0,0.003]
[1765554051407,3.21781381,3107.7,3107.0,0.003]
[1765554051836,6.43562762,3107.7,3107.0,0.003]
[1765554052010,3.26750651,3108.0,3107.0,0.003]
[1765554052011,6.84071748,3107.9,3107.0,0.003]
[1765554052215,1.0108224,3107.8,3107.0,0.003]
[1765554052506,1.59129769,3107.8,3107.0,0.003]
[1765554052806,0.58047529,3107.8,3107.0,0.003]
[1765554053203,0.05,3107.1,3107.0,0.003]
[1765554053404,0.05,3107.1,3105.7,0.595]
[1765554053639,0.05,3107.1,3105.7,3.81487781]
[1765554053842,0.05,3107.1,3103.6,0.91522213]
[1765554053843,0.405504,3106.9,3103.6,0.91522213]
[1765554054022,0.58047529,3107.8,3103.6,0.91522213]
[1765554054023,0.58047529,3106.4,3104.4,7.53296874]
[1765554054207,6.43811362,3106.5,3104.4,10.75420311]
[1765554054413,0.05,3107.1,3104.6,8.46048301]
[1765554054747,3.21781381,3107.7,3105.2,8.46048301]
[1765554055046,0.05,3107.4,3105.3,0.8460483]
[1765554055243,0.32678138,3107.6,3105.4,0.595]
[1765554055420,0.05967383,3108.2,3105.8,8.46048301]
[1765554055623,6.43479938,3108.1,3105.8,8.46048301]
[1765554055818,6.43479938,3108.1,3105.9,0.4955]
[1765554056163,6.43479938,3108.1,3105.0,0.00967383]
[1765554056164,0.05,3105.4,3103.7,0.01086101]
[1765554056315,2.06262,3105.8,3104.0,0.7229]
[1765554056650,2.7461,3105.7,3104.0,7.6616916]
[1765554056820,0.4601,3105.8,3104.1,0.4955]
[1765554057422,5.409224,3105.7,3104.1,0.4955]
[1765554057749,5.409224,3105.7,3104.2,0.594]
[1765554057750,2.69932,3105.7,3104.2,0.594]
[1765554057913,6.43997938,3105.6,3104.3,6.44267628]
[1765554058118,2.828005,3105.5,3104.4,0.594]
[1765554058342,3.86491,3105.4,3104.4,0.594]
[1765554058721,3.21998969,3105.6,3104.4,0.594]
[1765554058929,3.54198866,3105.6,3104.4,0.594]
[1765554059123,3.21998969,3105.6,3104.4,0.594]
[1765554059324,4.227853,3105.9,3104.4,0.594]
[1765554059526,10.952741,3105.8,3104.4,0.594]
[1765554059754,6.43935734,3105.9,3104.4,0.594]
[1765554060260,0.58047529,3105.7,3104.1,0.4955]
[1765554060546,0.4601,3106.2,3104.1,0.4955]
[1765554060547,6.43811362,3106.5,3104.5,0.58047529]
[1765554060732,0.00967383,3107.9,3104.8,8.46048301]
[1765554060733,9.131,3107.3,3104.8,8.46048301]
[1765554060913,3.056403,3107.3,3104.8,8.46048301]
[1765554061115,8.514517,3106.9,3104.9,0.4955]
[1765554061316,0.05,3107.4,3105.4,0.58047529]
[1765554061562,0.05,3106.8,3104.9,0.4955]
[1765554061718,3.746667,3107.3,3104.9,0.4955]
[1765554061719,0.58047529,3106.5,3104.9,0.4955]
[1765554061917,0.05,3106.8,3104.9,0.4955]
[1765554062122,6.43769916,3106.7,3105.0,6.44122382]
[1765554062425,0.05,3108.4,3106.6,0.1855]
[1765554062622,0.4601,3108.4,3106.6,0.1855]
[1765554062862,0.05,3107.5,3106.6,0.593]
[1765554063015,0.05,3107.1,3106.1,0.593]
[1765554063216,0.05,3107.9,3106.1,0.593]
[1765554063413,6.011237,3108.1,3106.2,0.4568]
[1765554063626,0.58047529,3107.8,3106.2,0.4568]
[1765554063932,0.05,3107.1,3106.2,0.593]
[1765554064156,0.58047529,3107.0,3106.2,0.593]
[1765554064652,4.0204237,3108.0,3106.2,7.03168861]
[1765554064653,0.05,3107.6,3106.2,7.03168861]
[1765554064851,3.21791736,3107.6,3106.3,0.592]
[1765554065052,7.0844502,3107.6,3106.3,0.592]
[1765554065346,6.48417834,3108.4,3106.6,7.07301421]
[1765554065550,0.58047529,3107.5,3105.7,0.4568]
[1765554065748,7.07301421,3108.2,3105.7,0.4568]
[1765554065749,0.05,3107.1,3105.8,0.592]
[1765554065938,0.405504,3107.4,3105.8,0.592]
[1765554066138,3.21771027,3107.8,3105.9,10.11583601]
[1765554066352,3.21771027,3107.8,3104.5,3.22111397]
[1765554066353,0.05,3107.0,3105.2,7.07301421]
[1765554066666,0.05,3107.0,3105.0,0.4568]
[1765554066667,0.05,3106.6,3105.3,0.592]
[1765554066857,0.05,3106.6,3105.6,3.2199278]
[1765554067056,0.00967383,3108.6,3106.5,0.1844]
[1765554067276,0.05,3108.5,3106.7,7.07301421]
[1765554067479,0.6390037,3108.9,3108.5,0.1844]
[1765554067622,0.6390037,3108.9,3108.6,0.592]
[1765554067815,3.21503337,3110.4,3108.6,1.0488]
[1765554068044,6.43005122,3110.4,3108.8,3.21667524]
[1765554068266,6.43005122,3110.4,3108.5,0.1844]
[1765554068267,0.05,3109.7,3108.5,0.592]
[1765554068466,0.05,3109.7,3107.3,3.21816997]
[1765554068467,4.316408,3109.0,3108.1,0.592]
[1765554068682,0.4317408,3108.9,3108.1,0.592]
[1765554068993,0.05,3109.6,3108.2,3.21726916]
[1765554069159,0.05,3109.6,3108.1,0.592]
[1765554069481,0.00967383,3110.1,3108.7,6.4335186]
[1765554069653,0.05,3110.3,3108.6,3.21685054]
[1765554069862,10.166114,3109.0,3106.6,3.21885257]
[1765554070069,10.166114,3109.0,3106.6,0.4568]
[1765554070070,0.05,3108.1,3106.6,0.4568]
[1765554070264,0.05,3108.1,3106.1,9.65834692]
[1765554070265,0.05,3108.6,3106.7,1.0498]
[1765554070485,6.479242,3108.5,3106.8,0.4568]
[1765554070684,0.05,3109.7,3107.2,7.07301421]
[1765554070999,9.65012382,3109.1,3107.2,7.07301421]
[1765554071149,3.69036486,3109.1,3107.3,1.0498]
[1765554071349,3.21738346,3109.1,3107.3,1.0498]
[1765554071574,0.58047529,3109.0,3107.4,0.4568]
[1765554071749,1.41406599,3109.0,3107.3,1.0498]
[1765554071961,0.05,3108.7,3107.3,0.593]
[1765554072160,9.65095704,3108.5,3107.3,0.593]
[1765554072551,0.473,3108.4,3107.3,0.593]
[1765554072791,0.001,3109.1,3107.3,7.02939986]
[1765554072992,6.43313592,3109.0,3107.4,0.4568]
[1765554073280,3.21737909,3109.1,3107.4,0.4568]
[1765554073482,0.001,3109.1,3107.4,0.4568]
[1765554073656,3.21741803,3109.1,3107.4,0.4568]
[1765554073850,0.001,3109.1,3107.8,7.07301421]
[1765554074052,0.001,3109.1,3108.1,0.58047529]
[1765554074289,0.001,3109.1,3108.3,7.07301421]
[1765554074457,0.00967383,3111.1,3109.0,0.1844]
[1765554074657,0.00967383,3111.1,3109.1,0.592]
[1765554074877,0.001,3111.5,3109.3,7.07301421]
[1765554075052,3.21407864,3111.4,3109.3,7.07301421]
[1765554075384,0.05,3111.0,3109.1,0.592]
[1765554075593,3.907238,3111.3,3109.1,0.592]
[1765554075594,0.405504,3110.4,3109.1,0.592]
[1765554076192,3.21553747,3109.9,3109.1,0.592]
[1765554076399,0.32155375,3109.8,3109.1,0.592]
[1765554076594,3.169786,3109.7,3107.9,0.6412]
[1765554076800,0.05,3111.3,3107.9,0.6412]
[1765554076801,10.82482454,3111.4,3109.1,9.64907365]
[1765554076981,3.21398727,3111.4,3109.1,12.86543851]
[1765554077157,0.1889,3109.2,3107.4,0.1844]
[1765554077353,0.05,3109.8,3107.4,0.1844]
[1765554077554,2.5702661,3109.7,3107.5,0.4568]
[1765554077785,0.473,3110.7,3109.1,3.21636486]
[1765554078188,6.42838776,3111.2,3109.2,0.4568]
[1765554078387,0.473,3111.4,3109.2,7.52981421]
[1765554078388,6.42817776,3111.4,3109.2,7.52981421]
[1765554078565,0.001,3111.5,3109.7,7.07301421]
[1765554078884,0.001,3111.5,3109.8,1.62927529]
[1765554079085,0.001,3111.5,3109.9,0.4568]
[1765554079593,6.42879705,3111.5,3109.9,0.4568]
[1765554079908,9.64271013,3111.5,3109.9,0.4568]
[1765554080062,6.42818114,3111.3,3109.9,3.67228629]
[1765554080260,6.42818114,3111.3,3109.8,0.592]
[1765554080261,4.481944,3111.1,3109.8,0.592]
[1765554080461,0.58047529,3110.9,3109.8,0.592]
[1765554080676,7.07301421,3110.4,3108.6,3.67484656]
[1765554080860,11.215367,3110.2,3108.2,0.591]
[1765554081093,10.993378,3109.7,3108.2,0.591]
[1765554081398,2.044532,3107.5,3105.5,3.22009338]
[1765554081691,0.58047529,3107.4,3105.5,6.89818676]
[1765554082012,7.148564,3107.3,3105.6,0.458]
[1765554082212,4.90425829,3107.1,3105.3,3.22027925]
[1765554082365,0.86517528,3107.2,3105.4,7.07301421]
[1765554082557,0.4879,3108.2,3105.9,7.07301421]
[1765554082903,0.405504,3108.7,3105.9,7.07301421]
[1765554082904,0.4879,3108.9,3106.4,0.58047529]
[1765554083120,6.43335048,3108.8,3106.4,7.07301421]
[1765554083319,8.74335,3108.5,3106.5,0.458]
[1765554083528,2.854183,3108.5,3106.5,0.458]
[1765554083823,1.18002505,3108.7,3106.0,1.17147529]
[1765554083824,0.58047529,3108.2,3106.4,0.458]
[1765554083993,0.4879,3108.4,3106.4,0.458]
[1765554084321,6.43376438,3108.6,3106.5,6.43811362]
[1765554084537,0.58047529,3108.2,3106.5,6.43811362]
[1765554084830,3.21649937,3109.0,3106.6,0.458]
[1765554085030,0.05,3108.4,3106.6,0.458]
[1765554085183,0.00967383,3108.5,3106.5,9.65717043]
[1765554085383,0.00967383,3108.5,3105.5,0.00967383]
[1765554085384,0.405504,3106.4,3104.0,0.1289]
[1765554085624,0.63047529,3106.5,3103.7,0.46886101]
[1765554085625,0.05,3105.7,3103.7,0.46886101]
[1765554085919,3.644722,3105.4,3103.7,0.46886101]
[1765554086096,6.44060154,3105.3,3103.8,3.22184585]
[1765554086292,6.44060154,3105.3,3103.7,3.23282189]
[1765554086293,5.809852,3105.2,3103.7,3.23282189]
[1765554086494,15.794129,3105.0,3103.7,0.01086101]
[1765554086710,0.63047529,3104.9,3103.7,0.01086101]
[1765554086886,0.58047529,3105.2,3103.7,3.23278978]
[1765554087085,5.302979,3105.2,3103.7,3.23278978]
[1765554087286,3.22030077,3105.3,3103.7,6.45475066]
[1765554087590,6.81142162,3105.3,3103.7,6.45475066]
[1765554087904,0.05,3105.0,3103.7,0.01086101]
[1765554088109,8.75073929,3105.1,3103.7,0.01086101]
[1765554088110,14.74990111,3104.7,3103.7,0.01086101]
[1765554088413,10.7926584,3104.7,3103.7,0.01086101]
[1765554088612,11.2805584,3104.7,3103.7,0.01086101]
[1765554088784,12.73069336,3104.7,3103.7,0.01086101]
[1765554088987,3.22092311,3104.7,3103.7,3.23280265]
[1765554089215,3.22092311,3104.7,3103.7,0.01086101]
[1765554089513,17.8676354,3104.7,3103.7,0.01086101]
[1765554090087,6.44158246,3104.9,3103.7,0.01086101]
[1765554090288,10.709871,3104.7,3103.7,0.01086101]
[1765554090542,0.405504,3104.3,3103.7,0.01086101]
[1765554090741,16.674193,3103.9,3103.3,0.002]
[1765554090954,0.05,3103.4,3103.3,0.002]
[1765554091162,0.405504,3102.7,3101.0,0.00542414]
[1765554091344,0.98597929,3103.3,3101.0,3.23014311]
[1765554091345,0.58047529,3102.5,3101.0,3.23014311]
[1765554091659,13.489038,3103.0,3101.1,0.458]
[1765554091823,0.05,3103.1,3101.0,0.00542414]
[1765554091824,10.515701,3102.8,3101.0,0.00542414]
[1765554092157,3.22372662,3102.0,3101.0,0.00542414]
[1765554092321,2.086819,3101.9,3101.0,0.00542414]
[1765554092519,6.49745324,3102.0,3101.0,0.00542414]
[1765554092743,2.925542,3101.9,3101.0,0.00542414]
[1765554092944,2.633641,3101.7,3101.0,0.00542414]
[1765554093150,14.195773,3101.7,3101.0,0.00542414]
[1765554093363,19.333193,3101.6,3101.0,0.00542414]
[1765554093518,22.476984,3101.5,3101.0,0.00542414]
[1765554093719,3.305934,3101.5,3101.0,0.00542414]
[1765554093932,0.4879,3101.4,3101.0,0.00542414]
[1765554094153,3.22455823,3101.2,3101.0,0.00542414]
[1765554094375,3.33686,3101.1,3101.0,1e-08]
[1765554094674,3.22455823,3101.2,3101.0,1e-08]
[1765554094869,3.86946172,3101.2,3101.0,1e-08]
[1765554095088,0.05,3101.8,3101.0,1e-08]
[1765554095456,0.63047529,3101.8,3101.0,1e-08]
[1765554095772,0.05,3101.1,3101.0,1e-08]
[1765554095972,15.11354129,3101.1,3101.0,1e-08]
[1765554096279,20.17133885,3101.1,3101.0,1e-08]
[1765554096466,24.930707,3100.1,3098.4,1.96141736]
[1765554096666,24.930707,3100.1,3098.4,1.37241736]
[1765554096667,0.05,3099.4,3098.4,1.37241736]
[1765554096977,0.405504,3098.8,3098.4,1.37241736]
[1765554097179,0.05,3098.1,3097.7,0.01574439]
[1765554097385,30.1928,3098.5,3095.1,0.01576]
[1765554097386,7.09893,3096.8,3095.1,0.01576]
[1765554097543,7.07301421,3097.8,3095.1,0.01576]
[1765554097544,0.05,3095.7,3095.1,0.01576]
[1765554097742,0.05,3094.7,3093.5,4.309197]
[1765554098011,0.05,3096.6,3094.2,7.07301421]
[1765554098187,0.05,3096.6,3093.7,12.92950188]
[1765554098188,6.45953102,3096.2,3093.7,12.92950188]
[1765554098352,0.4879,3096.5,3094.1,7.07301421]
[1765554098555,0.05,3096.2,3093.8,1.85575019]
[1765554098754,4.72549897,3096.4,3093.9,0.49032166]
[1765554098755,3.368175,3096.4,3093.9,0.49032166]
[1765554099073,0.05,3097.0,3094.6,7.12466822]
[1765554099285,0.05,3097.0,3094.0,0.03232062]
[1765554099286,3.124517,3095.6,3094.0,0.458]
[1765554099588,3.820052,3096.2,3094.1,0.458]
[1765554099877,8.380181,3095.8,3094.1,0.458]
[1765554100067,0.3870052,3096.2,3094.1,0.458]
[1765554100272,3.428852,3096.2,3094.2,6.46370628]
[1765554100567,0.05,3095.4,3093.1,3.2329846]
[1765554100765,2.905083,3094.9,3093.3,0.1]
[1765554100968,2.905083,3094.9,3092.7,0.458]
[1765554101301,0.41520081,3094.7,3093.3,3.23269136]
[1765554101581,0.41520081,3094.7,3093.3,3.2327005]
[1765554101582,0.00969681,3094.7,3093.3,3.2327005]
[1765554101793,0.00969681,3094.7,3093.4,0.458]
[1765554102098,0.00969681,3094.7,3094.1,6.46385847]
[1765554102248,0.00969681,3094.7,3093.5,9.69775335]
[1765554102454,0.00969681,3094.7,3093.4,3.23268895]
[1765554102687,0.00969681,3094.7,3093.4,6.9233779]
[1765554102867,0.00969681,3094.7,3093.5,0.458]
[1765554103246,0.00969681,3094.7,3093.4,6.4653779]
[1765554103548,0.00969681,3094.7,3093.5,8.16314351]
[1765554103774,0.00969681,3094.7,3093.5,1.03847529]
[1765554103983,0.00969681,3094.7,3093.6,0.458]
[1765554104183,0.00969681,3094.7,3093.7,9.69712641]
[1765554104604,0.00969681,3096.5,3093.8,2.18597946]
[1765554104885,3.23837535,3097.3,3094.6,7.12466822]
[1765554104886,3.22934831,3096.6,3094.6,7.12466822]
[1765554105055,0.54759587,3097.3,3094.8,7.12466822]
[1765554105056,0.49759587,3097.3,3094.8,7.12466822]
[1765554105393,0.49759587,3097.3,3094.9,1.30646682]
[1765554105394,3.756858,3097.2,3094.9,1.30646682]
[1765554105685,4.223409,3097.6,3095.3,7.12466822]
[1765554105846,10.052229,3097.4,3095.4,0.594]
[1765554106048,3.23797001,3097.7,3095.8,7.12466822]
[1765554106271,0.00969587,3097.7,3095.7,7.12466822]
[1765554106471,0.00969587,3097.7,3095.9,0.594]
[1765554106693,0.00969587,3097.7,3093.9,0.458]
[1765554106694,0.01292157,3096.1,3093.9,0.458]
[1765554106845,5.80166706,3096.0,3094.2,0.49031853]
[1765554107058,0.405504,3096.1,3094.2,0.458]
[1765554107259,6.876141,3095.8,3094.5,3.23153207]
[1765554107493,2.105103,3095.8,3094.2,0.458]
[1765554107659,0.4879,3096.3,3093.8,10.3568634]
[1765554107859,0.98597929,3096.6,3094.3,0.458]
[1765554108059,5.346237,3096.3,3094.7,3.2313304]
[1765554108281,0.99890086,3096.4,3093.6,0.58047529]
[1765554108282,0.01292157,3096.1,3094.6,0.598]
[1765554108454,0.63047529,3095.7,3093.3,3.23275171]
[1765554108781,5.061956,3095.1,3093.4,0.458]
[1765554108982,2.496856,3094.9,3093.4,0.458]
[1765554109286,0.56424313,3095.0,3093.2,3.23279722]
[1765554109453,0.01292157,3094.3,3093.3,3.23277802]
[1765554109881,9.952897,3095.2,3093.3,3.23277802]
[1765554110064,7.2476,3095.0,3093.4,6.4653779]
[1765554110414,3.266742,3094.7,3092.8,0.38753524]
[1765554110554,2.311225,3094.7,3092.8,0.88093524]
[1765554110754,6.46245314,3094.8,3092.5,0.003]
[1765554110755,0.02585441,3093.8,3092.5,0.003]
[1765554110986,7.990517,3093.7,3092.5,0.003]
[1765554111290,0.05,3093.4,3092.5,0.003]
[1765554111596,0.58047529,3093.1,3092.5,0.003]
[1765554111781,0.405504,3092.7,3092.5,0.003]
[1765554111965,0.05,3094.3,3092.5,0.003]
[1765554112284,0.405504,3093.3,3092.5,0.003]
[1765554112484,10.2776017,3093.7,3092.5,0.003]
[1765554112485,6.46475094,3093.7,3092.5,0.003]
[1765554112687,2.252787,3093.5,3092.5,0.003]
[1765554112855,3.23209627,3094.0,3092.5,0.003]
[1765554112856,3.23195759,3094.1,3092.5,0.003]
[1765554113186,3.224432,3094.0,3092.5,0.003]
[1765554113389,0.0323342,3094.5,3092.5,0.003]
[1765554113390,2.319971,3093.9,3092.5,0.003]
[1765554113589,0.58047529,3094.1,3092.5,0.003]
[1765554113792,2.554535,3094.3,3092.6,0.4934]
[1765554114083,9.75165,3094.3,3092.6,0.4934]
[1765554114261,3.23140161,3094.7,3092.6,0.4934]
[1765554114262,6.46272876,3094.7,3092.7,6.46684126]
[1765554114463,5.015969,3094.5,3092.5,0.603]
[1765554114696,8.707688,3094.1,3092.5,0.603]
[1765554114857,9.69405974,3094.7,3092.6,6.96036662]
[1765554115056,6.46272876,3094.7,3092.6,14.08503484]
[1765554115263,3.23101777,3095.0,3092.7,0.4934]
[1765554115469,0.9356,3095.7,3092.8,2.63568381]
[1765554115470,0.06465848,3095.4,3092.8,2.63568381]
[1765554115671,6.255857,3096.0,3093.5,7.12466822]
[1765554115959,3.2295819,3096.4,3094.5,7.12466822]
[1765554116168,3.2295819,3096.4,3093.6,0.6]
[1765554116373,0.0323342,3096.3,3094.5,6.46307964]
[1765554116571,7.12466822,3097.2,3094.5,6.46307964]
[1765554116572,6.33782883,3097.3,3094.5,16.1576991]
[1765554116816,0.03232428,3097.4,3096.4,7.12466822]
[1765554117110,7.63745365,3099.7,3097.3,0.1824]
[1765554117312,2.667683,3099.6,3097.8,7.12466822]
[1765554117501,0.0323342,3100.0,3098.3,7.12466822]
[1765554117698,7.484657,3100.2,3098.4,0.4934]
[1765554118017,0.0323342,3100.1,3098.5,0.599]
[1765554118312,3.22580645,3100.0,3098.7,3.22715977]
[1765554118500,0.0323342,3099.9,3098.6,3.72066392]
[1765554118700,0.1125,3100.7,3098.6,3.72066392]
[1765554118701,0.0323342,3099.8,3098.6,3.72066392]
[1765554119009,0.0323342,3099.8,3097.9,7.12466822]
[1765554119010,0.0323342,3099.7,3098.0,0.599]
[1765554119208,0.0323342,3099.7,3098.0,1.0924]
[1765554119408,2.358451,3100.1,3098.0,1.0924]
[1765554119616,0.4665,3100.4,3098.1,0.4934]
[1765554119794,9.6774292,3100.3,3098.6,6.45448295]
[1765554119978,30.0,3100.4,3098.5,3.2273633]
[1765554120179,30.0,3100.4,3097.6,0.58047529]
[1765554120180,17.100994,3100.0,3095.1,0.1824]
[1765554120396,0.0323342,3100.3,3097.4,6.95042846]
[1765554120397,0.58047529,3099.6,3097.4,6.95042846]
[1765554120595,0.05,3101.2,3098.8,7.12466822]
[1765554120804,0.05,3101.2,3097.5,1.07387529]
[1765554120805,7.12466822,3101.9,3099.3,7.12466822]
[1765554120806,0.4665,3101.9,3099.3,7.12466822]
[1765554121117,0.4665,3101.9,3099.6,7.12466822]
[1765554121118,0.1125,3101.9,3099.6,7.12466822]
[1765554121315,0.49982428,3102.5,3099.4,0.4934]
[1765554121316,0.03332428,3102.5,3101.2,0.1824]
[1765554121486,0.03332428,3102.5,3101.2,0.7804]
[1765554121803,0.001,3102.5,3101.0,0.598]
[1765554122008,0.001,3102.5,3101.2,0.4934]
[1765554122214,3.22420709,3102.5,3101.0,0.598]
[1765554122516,2.1629722,3102.4,3100.5,0.1824]
[1765554122682,2.1629722,3102.4,3100.4,0.598]
[1765554122683,8.093867,3102.2,3100.4,0.598]
[1765554122890,0.58047529,3101.9,3100.4,0.598]
[1765554123086,4.077305,3101.6,3100.4,0.598]
[1765554123404,0.58047529,3101.7,3099.2,3.22663529]
[1765554123405,0.98597929,3101.2,3099.2,3.22663529]
[1765554123730,0.1125,3101.1,3099.3,0.4934]
[1765554123884,0.58047529,3100.7,3098.9,0.598]
[1765554124083,0.0323342,3100.6,3099.0,0.4934]
[1765554124325,4.8432,3100.6,3099.1,3.22666864]
[1765554124526,4.8432,3100.6,3099.0,3.72024539]
[1765554124527,0.0323342,3100.5,3099.0,3.72024539]
[1765554124729,0.58047529,3100.8,3099.0,6.94709276]
[1765554124929,0.58047529,3101.1,3099.1,1.57059699]
[1765554125132,0.58047529,3101.2,3099.1,1.57059699]
[1765554125348,0.37981073,3101.0,3099.2,0.4934]
[1765554125625,0.01934392,3101.5,3099.2,0.4934]
[1765554125626,3.22341488,3102.3,3099.7,3.384551]
[1765554125826,7.6329992,3102.2,3099.6,8.52597311]
[1765554126029,10.532812,3101.9,3099.7,0.4934]
[1765554126192,0.0323342,3101.8,3099.7,0.4934]
[1765554126393,1.4079829,3102.1,3099.8,12.90405832]
[1765554126704,0.001,3102.5,3100.9,8.52597311]
[1765554126895,0.001,3102.5,3101.0,0.597]
[1765554127092,3.63638142,3102.5,3101.0,0.597]
[1765554127326,0.001,3102.5,3101.0,1.0904]
[1765554127493,3.387228,3102.4,3101.0,1.0904]
[1765554127696,3.60401782,3102.5,3101.0,0.597]
[1765554127996,3.509905,3102.3,3101.1,0.4934]
[1765554128198,3.509905,3102.3,3101.0,0.597]
[1765554128199,0.58047529,3102.3,3101.0,0.597]
[1765554128403,4.22529129,3101.9,3101.0,0.597]
[1765554128611,0.02256791,3101.5,3099.7,0.4934]
[1765554128808,0.6030432,3101.9,3099.7,0.4934]
[1765554128809,1.22989479,3101.4,3099.8,1.0894]
[1765554129119,0.0323342,3101.3,3099.8,1.0894]
[1765554129322,0.58047529,3101.6,3099.8,1.0894]
[1765554129518,0.69297529,3101.9,3099.8,1.0894]
[1765554129519,7.527384,3101.3,3100.0,3.22580068]
[1765554129831,7.527384,3101.3,3099.8,1.0894]
[1765554129832,0.58047529,3101.7,3099.9,0.4934]
[1765554130039,0.58047529,3101.5,3099.9,0.4934]
[1765554130396,0.58047529,3101.5,3100.1,0.05]
[1765554130596,3.22405903,3101.7,3100.1,0.05]
[1765554130801,6.44811806,3101.7,3100.3,0.05]
[1765554131011,6.44811806,3101.7,3100.1,0.4934]
[1765554131012,0.0323342,3101.6,3100.1,0.4934]
[1765554131212,5.272695,3101.4,3100.1,0.4934]
[1765554131412,2.054397,3101.2,3099.4,0.4934]
[1765554131699,0.4665,3103.0,3100.3,8.52597311]
[1765554131903,3.22299447,3102.8,3100.9,8.52597311]
[1765554132103,3.22279334,3102.9,3101.0,0.6758]
[1765554132306,0.0323342,3102.8,3101.1,3.22466221]
[1765554132553,2.3101,3102.4,3101.0,0.4934]
[1765554132704,2.3101,3102.4,3100.5,3.71860531]
[1765554132705,14.496942,3102.2,3100.5,3.71860531]
[1765554132903,0.405504,3101.8,3099.9,0.595]
[1765554133104,0.61280949,3102.1,3099.9,0.595]
[1765554133105,5.298689,3101.5,3099.9,0.595]
[1765554133304,0.98597929,3101.6,3099.9,0.595]
[1765554133305,0.58047529,3101.2,3099.9,0.595]
[1765554133529,0.58047529,3101.2,3098.8,11.75293384]
[1765554133530,0.58047529,3100.9,3099.5,3.22622613]
[1765554133802,4.3201,3100.8,3099.5,3.22626987]
[1765554134003,7.878507,3100.5,3098.7,0.4934]
[1765554134217,0.98597929,3100.4,3098.7,0.4934]
[1765554134412,0.58047529,3100.2,3098.7,3.72053124]
[1765554134625,3.22518222,3100.6,3098.8,0.4934]
[1765554134826,0.58047529,3101.2,3098.8,0.4934]
[1765554135024,0.58047529,3100.9,3098.8,0.4934]
[1765554135232,19.532964,3100.7,3098.8,0.4934]
[1765554135404,0.58047529,3100.6,3098.6,0.02256791]
[1765554135604,0.98597929,3100.3,3098.6,0.02256791]
[1765554135837,0.98597929,3100.3,3097.7,0.4934]
[1765554135838,0.3554774,3101.5,3096.9,0.1824]
[1765554135839,0.02256791,3099.2,3096.9,0.1824]
[1765554136041,6.119197,3098.4,3096.8,0.4934]
[1765554136245,2.302487,3098.6,3096.9,6.45803794]
[1765554136450,0.07256791,3099.6,3097.0,9.71473744]
[1765554136451,3.22653502,3099.3,3097.0,9.71473744]
[1765554136662,3.22622273,3099.6,3097.1,1.10616355]
[1765554136818,0.02256791,3099.8,3097.6,8.52619365]
[1765554137005,0.02256791,3099.8,3097.7,1.7001573]
[1765554137205,0.58047529,3099.3,3096.9,6.45803794]
[1765554137422,0.58047529,3098.9,3097.0,0.4934]
[1765554137621,0.60606413,3098.8,3097.0,0.4934]
[1765554137907,12.90419004,3099.8,3097.0,0.4934]
[1765554138138,0.98597929,3099.4,3097.0,0.4934]
[1765554138326,0.58047529,3099.0,3097.1,6.45765392]
[1765554138636,0.02256791,3098.6,3096.7,0.594]
[1765554138835,30.0,3098.3,3096.7,0.594]
[1765554139035,0.02256791,3098.6,3096.7,0.594]
[1765554139036,0.58047529,3097.8,3096.7,0.594]
[1765554139203,0.4576,3098.5,3096.9,3.22902758]
[1765554139429,0.58047529,3098.1,3096.7,0.594]
[1765554139630,30.0,3097.7,3095.6,0.4922]
[1765554139869,0.58047529,3097.5,3096.1,3.22984727]
[1765554140175,0.58047529,3097.5,3095.0,0.03331017]
[1765554140176,3.05804753,3097.6,3095.1,3.23089453]
[1765554140177,0.405504,3096.8,3095.1,3.23089453]
[1765554140466,6.45848806,3096.7,3095.0,0.001]
[1765554140682,0.58047529,3097.3,3095.2,0.4549]
[1765554140832,5.74095924,3097.3,3095.2,0.4549]
[1765554141135,0.405504,3097.0,3095.2,0.4549]
[1765554141457,0.405504,3097.0,3095.0,0.001]
[1765554141458,30.0,3096.3,3095.0,0.001]
[1765554141635,6.017535,3095.9,3095.0,0.001]
[1765554141834,2.345464,3095.7,3095.0,0.001]
[1765554142057,0.58047529,3095.2,3095.0,0.001]
[1765554142271,2.00455,3095.5,3095.0,0.001]
[1765554142576,15.518006,3095.3,3095.0,0.001]
[1765554142741,6.46120048,3095.4,3095.0,0.001]
[1765554142742,30.455504,3095.1,3095.0,0.001]
[1765554142950,3.68407322,3095.1,3095.0,0.001]
[1765554143144,3.23049977,3095.5,3095.0,0.001]
[1765554143452,6.46099954,3095.5,3095.0,0.001]
[1765554143654,6.28855929,3095.4,3095.0,0.001]